Cogmind - Beta 14 @@@ ROGUE MODE // 2025.03.11 @ 15:22:46 Player: beter Result: Self-destructed Performance ------------- Evolutions (3) 1500 Regions Visited (7) 1400 Robots Destroyed (41) 205 Value Destroyed (1059) 1059 Prototype IDs (26) 520 Alien Tech Used (0) 0 Bonus (326) 326 TOTAL SCORE: 5010 Bonus ------- High Alert Combat Kills 19 Follower Combat Kills 7 Aligned with FarCom 300 Cogmind --------- Core Integrity 700/700 Matter 300/300 Energy 160/160 System Corruption 0% Temperature Cool (0) Movement Flying (50) Location -7/Factory Parts ------- > --- POWER (2) -------- Light Nuclear Core > --- PROPULSION (4) --- Flying Fortress v7 > --- UTILITY (4) ------ Heat Sink Medium Storage Unit Medium Armor Plating > --- WEAPON (3) ------- Beam Rifle AWS/Gauss > --- INVENTORY (10) --- Light Nuclear Core Xenon Bombardment Thruster Particle Charger Shock Rifle Particle Cannon Heavy Assault Rifle Rocket Launcher Improved Grenade Launcher Longsword +1 Peak State ------------ > --- POWER ------------ Light Nuclear Core > --- PROPULSION ------- Flying Fortress v7 > --- UTILITY ---------- Heat Sink Medium Storage Unit Medium Armor Plating > --- WEAPON ----------- Beam Rifle AWS/Gauss > --- INVENTORY -------- Light Nuclear Core Xenon Bombardment Thruster Particle Charger Shock Rifle Particle Cannon Heavy Assault Rifle Rocket Launcher Improved Grenade Launcher Longsword +1 [Rating: 60] Favorites ----------- Power Light Nuclear Core Engine Ion Engine Power Core Light Nuclear Core Propulsion Aluminum Leg Treads Light Treads Leg Aluminum Leg Wheel Wheel Flight Unit Flying Fortress v7 Utility Medium Storage Unit Device Heat Sink Storage Medium Storage Unit Processor Visual Processing Unit Protection Medium Armor Plating Weapon Light Assault Rifle Energy Gun Beam Rifle Ballistic Gun Light Assault Rifle Launcher Rocket Launcher Build | -11 -10 -9 -9 -9 -8 -8 -7 ------- Run | Yrd Mat Mat Min Exi Min Mat Fac Slots Evolved 6 | . . 2 . . . 2 2 Power 1 | . . . . . . . 1 Propulsion 2 | . . 1 . . . 1 . Utility 2 | . . . . . . 1 1 Weapon 1 | . . 1 . . . . . Parts Attached 51 | 6 10 15 15 2 . 3 . Power 6 | 1 1 2 2 . . . . Engine 3 | 1 1 1 . . . . . Core 3 | . . 1 2 . . . . Reactor . | . . . . . . . . Propulsion 17 | 2 6 2 5 1 . 1 . Treads 2 | . 2 . . . . . . Leg 12 | . 4 2 5 1 . . . Wheel 2 | 2 . . . . . . . Hover . | . . . . . . . . Flight 1 | . . . . . . 1 . Utility 13 | 1 3 4 3 . . 2 . Device 8 | . 1 4 2 . . 1 . Storage 3 | 1 2 . . . . . . Processor 1 | . . . 1 . . . . Hackware . | . . . . . . . . Protection 1 | . . . . . . 1 . Artifact . | . . . . . . . . Weapon 15 | 2 . 7 5 1 . . . Energy Gun 4 | 1 . 3 . . . . . Energy Cannon . | . . . . . . . . Ballistic Gun 7 | 1 . 2 3 1 . . . Ballistic Cannon . | . . . . . . . . Launcher 4 | . . 2 2 . . . . Special Weapon . | . . . . . . . . Impact Weapon . | . . . . . . . . Slashing Weapon . | . . . . . . . . Piercing Weapon . | . . . . . . . . Special Melee Weapon . | . . . . . . . . Unidentified Prototypes 1 | . . . 1 . . . . Parts Lost 11 | . 4 3 4 . . . . Power 2 | . 1 . 1 . . . . Propulsion 4 | . 2 . 2 . . . . Utility 3 | . 1 1 1 . . . . Weapon 2 | . . 2 . . . . . Highest Loss Streak 4 | . 3 2 4 . . . . To Critical Strikes . | . . . . . . . . Average Slot Usage (%) 89 | . 85 97 99 92 88 63 53 Engine 2 | . 14 8 . . . . . Core 7 | . . 2 10 11 11 9 7 Leg 26 | . 13 33 32 33 33 . . Wheel 1 | . 11 . . . . . . Flight 1 | . . . . . . 9 7 Device 5 | . 1 10 9 . . 9 7 Storage 10 | . 14 11 11 11 11 9 7 Processor 3 | . . . . 11 11 . . Protection 1 | . . . . . . 9 7 Energy Gun 11 | . 14 14 11 11 11 9 7 Ballistic Gun 13 | . 14 15 16 15 11 9 7 Launcher 1 | . . 1 5 . . . . Peak Build Rating 60 | 6 7 13 22 31 31 59 60 Average Rating 24 | 4 6 10 18 23 31 57 59 On Entrance 19 | . 6 7 11 14 31 31 59 Naked Turns . | . . . . . . . . Heaviest Build 36 | 11 18 23 24 28 28 36 36 Greatest Support 50 | 20 40 30 30 30 30 50 50 Greatest Overweight (x) 1 | . 1 . . . . . . Average Overweight (x) . | . . . . . . . . Largest Inventory Capacity 10 | 8 10 10 10 10 10 10 10 Average Capacity 9 | 6 9 10 10 10 10 10 10 Most Carried 10 | 6 10 10 10 10 10 10 9 Average Carried 8 | 2 7 8 9 8 10 4 8 Final Capacity 10 | 8 10 10 10 10 10 10 10 Final Carried 10 | 6 10 10 6 10 10 8 9 Class Distribution -------------------- 51% | Scavenger-Skirmisher 22% | Scavenger-Gunner 11% | Mutant 8% | Skirmisher 4% | Tank Dominant Class ---------------- Mutant | -10/Materials Scavenger-Gunner | -9/Materials Scavenger-Skirmisher | -9/Mines Scavenger-Skirmisher | -9/Exiles Scavenger-Skirmisher | -8/Mines Skirmisher | -8/Materials Tank | -7/Factory Resources | -11 -10 -9 -9 -9 -8 -8 -7 ----------- Run | Yrd Mat Mat Min Exi Min Mat Fac Matter Collected 820 | 182 172 229 102 105 . 30 . Remotely 50 | . 50 . . . . . . Salvage Created 1152 | . 261 567 154 . . 116 54 Parts 103 | . 23 50 17 . . 11 2 Haulers Intercepted . | . . . . . . . . Recyclers Shooed 2 | . . 2 . . . . . Parts Field Recycled . | . . . . . . . . Retrieved Matter . | . . . . . . . . Parts Self-Destructed . | . . . . . . . . Prevented . | . . . . . . . . Kills | -11 -10 -9 -9 -9 -8 -8 -7 ------- Run | Yrd Mat Mat Min Exi Min Mat Fac Combat Hostiles Destroyed 30 | . 3 15 9 . . 2 1 Guns 20 | . 3 9 5 . . 2 1 AOE 10 | . . 6 4 . . . . Classes Destroyed 8 | . 5 2 1 . . . . Worker 4 | . 2 2 . . . . . Builder 2 | . 1 1 . . . . . Recycler 1 | . 1 . . . . . . Watcher 4 | . 1 3 . . . . . Swarmer 11 | . . 7 4 . . . . Grunt 11 | . 3 4 3 . . . 1 Sentry 6 | . . 4 . . . 2 . Demolisher 2 | . . . 2 . . . . Best Kill Streak 6 | . 6 6 3 . . 2 1 Combat Bots Only 4 | . 2 4 3 . . 2 1 Max Kills in Single Turn 3 | . 3 3 2 . . 1 1 Gunslinging . | . . . . . . . . Exploded 2 | . . 2 2 . . . . Melee . | . . . . . . . . Uniques/NPCs Destroyed . | . . . . . . . . Combat | -11 -10 -9 -9 -9 -8 -8 -7 -------- Run | Yrd Mat Mat Min Exi Min Mat Fac Hostile Shots Fired 111 | . 11 74 14 . . 4 8 Missed 33 | . 3 19 3 . . 3 5 Damage Taken 1369 | . 280 665 363 . . 15 46 Core 175 | . . 133 27 . . 15 . Absorbed by Shields . | . . . . . . . . Core Remaining (%) 89 | 100 100 . . . 60 97 . Volleys Fired 75 | . 11 44 15 . . 1 4 Largest 3 | . 2 3 3 . . 1 1 Hottest 110 | . 60 110 109 . . 56 56 Shots Fired 213 | . 22 122 42 . . 6 21 Gun 206 | . 22 118 39 . . 6 21 Cannon . | . . . . . . . . Launcher 7 | . . 4 3 . . . . Special . | . . . . . . . . Kinetic 111 | . 11 54 24 . . 5 17 Thermal 62 | . . 42 15 . . 1 4 Explosive 7 | . . 4 3 . . . . Electromagnetic 33 | . 11 22 . . . . . Robot Hit Streak 13 | . 5 13 11 . . 7 10 Robot Miss Streak 5 | . 2 5 3 . . . 1 Penetration Max . | . . . . . . . . Secondary Targets 5 | . . 3 2 . . . . Max Gunslinging Chain 1 | . . 1 1 . . . . Autonomous 22 | . . . . . . 5 17 Shots Hit Robots 132 | . 13 72 24 . . 6 17 Core Hits 74 | . 13 39 18 . . 2 2 Critical Kills . | . . . . . . . . Critical Parts Destroyed . | . . . . . . . . Critical Strikes 4 | . . 3 1 . . . . Burn 3 | . . 2 1 . . . . Corrupt 1 | . . 1 . . . . . Melee Attacks . | . . . . . . . . Impact . | . . . . . . . . Slashing . | . . . . . . . . Piercing . | . . . . . . . . Sneak Attacks . | . . . . . . . . Combat Hostiles . | . . . . . . . . Follow-up Attacks . | . . . . . . . . Damage Inflicted 3073 | . 555 1382 532 . . 160 444 Guns 1900 | . 172 881 243 . . 160 444 Cannons . | . . . . . . . . Explosions 1173 | . 383 501 289 . . . . Melee . | . . . . . . . . Ramming . | . . . . . . . . Kinetic 972 | . 52 278 83 . . 145 414 Thermal 780 | . 37 538 160 . . 15 30 Explosive 993 | . 346 358 289 . . . . Electromagnetic 328 | . 120 208 . . . . . Impact . | . . . . . . . . Slashing . | . . . . . . . . Piercing . | . . . . . . . . Highest Corruption . | . . . . . . . . Average Corruption . | . . . . . . . . Corruption Purged . | . . . . . . . . Corruption Blocked . | . . . . . . . . Overload Shots . | . . . . . . . . Overflow Damage 122 | . 120 2 . . . . . Projectiles . | . . . . . . . . Explosions 122 | . 120 2 . . . . . Melee . | . . . . . . . . Knockbacks . | . . . . . . . . Impact . | . . . . . . . . Kinetic . | . . . . . . . . Secondary . | . . . . . . . . Self-Inflicted Damage 176 | . 176 . . . . . . Shots 2 | . 2 . . . . . . Rammed . | . . . . . . . . Targets Rammed . | . . . . . . . . Kicked . | . . . . . . . . Crushed . | . . . . . . . . Highest Temperature 350 | . 67 350 158 . . 17 8 Average Temperature 58 | . 30 70 54 . . 15 4 Received Heat Transfer 342 | . 57 240 9 . . 9 27 Effects 4 | . . 4 . . . . . Energy Bleed 3 | . . 3 . . . . . Interference 1 | . . 1 . . . . . Siege Activations . | . . . . . . . . Robots Corrupted . | . . . . . . . . Combat Hostiles . | . . . . . . . . Parts Fried . | . . . . . . . . Impact Corruptions . | . . . . . . . . Robots Melted . | . . . . . . . . Combat Hostiles . | . . . . . . . . Parts Melted 3 | . . 3 . . . . . Heat Transferred 2063 | . 50 1421 481 . . 37 74 Parts Sabotaged . | . . . . . . . . Parts Stolen . | . . . . . . . . Parts Stripped . | . . . . . . . . Power Chain Reactions 3 | . 1 2 . . . . . Alert | -11 -10 -9 -9 -9 -8 -8 -7 ------- Run | Yrd Mat Mat Min Exi Min Mat Fac Peak Influence 542 | . 155 542 412 . . 121 101 Initial 211 | . . 65 211 . . . 54 Average 179 | . 92 358 281 . . 100 59 Maximum Alert Level 2 | . . 2 2 . . . . Low Security (%) 57 | 100 100 19 11 . 100 100 100 Level 1 29 | . . 34 75 . . . . Level 2 12 | . . 45 12 . . . . Level 3 . | . . . . . . . . Level 4 . | . . . . . . . . Level 5 . | . . . . . . . . High Security . | . . . . . . . . Max Security . | . . . . . . . . Squads Dispatched 3 | . . 1 1 . . . 1 Investigation 1 | . . . . . . . 1 Extermination . | . . . . . . . . Reinforcement 2 | . . 1 1 . . . . Assault . | . . . . . . . . Garrison . | . . . . . . . . Intercept . | . . . . . . . . Searches Triggered . | . . . . . . . . Construction Impeded 1 | . . . 1 . . . . Haulers Reinforced . | . . . . . . . . Active Scanning Responses . | . . . . . . . . Cargo Convoy Interrupts . | . . . . . . . . Stealth | -11 -10 -9 -9 -9 -8 -8 -7 --------- Run | Yrd Mat Mat Min Exi Min Mat Fac Distress Signals 2 | . 1 1 . . . . . Communications Jammed . | . . . . . . . . Distress Signals . | . . . . . . . . Times Spotted 40 | . 5 22 8 . . 3 2 Peak Tracking Total 4 | . 4 4 3 . . 2 2 Tactical Retreats . | . . . . . . . . Traps | -11 -10 -9 -9 -9 -8 -8 -7 ------- Run | Yrd Mat Mat Min Exi Min Mat Fac Traps Triggered . | . . . . . . . . Indirectly . | . . . . . . . . Trap Hack Attempts . | . . . . . . . . Triggered . | . . . . . . . . Disarmed 6 | . 6 . . . . . . Reprogrammed . | . . . . . . . . Reused . | . . . . . . . . Traps Extracted . | . . . . . . . . Installed . | . . . . . . . . Triggered . | . . . . . . . . Machines | -11 -10 -9 -9 -9 -8 -8 -7 ---------- Run | Yrd Mat Mat Min Exi Min Mat Fac Machines Disabled 5 | . 2 1 . . . 1 1 Max in Single Turn 1 | . 1 1 . . . 1 1 Machines Repaired . | . . . . . . . . Machines Dismantled . | . . . . . . . . Machines Sabotaged . | . . . . . . . . Overloaded Fab Kills . | . . . . . . . . Hacking | -11 -10 -9 -9 -9 -8 -8 -7 --------- Run | Yrd Mat Mat Min Exi Min Mat Fac Machines Accessed 13 | . 3 3 . 2 1 2 2 Terminals 9 | . 3 2 . . 1 2 1 Fabricators . | . . . . . . . . Repair Stations 1 | . . . . . . . 1 Recycling Units 1 | . . 1 . . . . . Scanalyzers . | . . . . . . . . Garrison Access . | . . . . . . . . Total Hacks 52 | . 14 6 . 24 1 4 3 Successful 36 | . 8 2 . 24 1 1 . Failed 16 | . 6 4 . . . 3 3 Catastrophic 4 | . 1 1 . . . . 2 Database Lockouts . | . . . . . . . . Manual 13 | . 4 3 . 1 2 1 2 Terminals 24 | . 14 3 . . 1 4 2 Fabricators . | . . . . . . . . Repair Stations 1 | . . . . . . . 1 Recycling Units 3 | . . 3 . . . . . Scanalyzers . | . . . . . . . . Garrison Access . | . . . . . . . . Terminal Hacks 34 | . 8 . . 24 1 1 . Record 23 | . . . . 23 . . . Prototype ID Bank 1 | . 1 . . . . . . Level Access Points 2 | . 1 . . . 1 . . Alert Level 2 | . 1 . . . . 1 . Locate Traps 1 | . 1 . . . . . . Disarm Traps 1 | . 1 . . . . . . Dispatch Records 1 | . 1 . . . . . . Zone Layout 2 | . 2 . . . . . . Derelict Proto ID Bank 1 | . . . . 1 . . . Fabricator Hacks . | . . . . . . . . Repair Station Hacks . | . . . . . . . . Recycling Unit Hacks 2 | . . 2 . . . . . Process 1 | . . 1 . . . . . Report Inventory 1 | . . 1 . . . . . Scanalyzer . | . . . . . . . . Garrison Access Hacks . | . . . . . . . . Unauthorized Hacks . | . . . . . . . . Terminals . | . . . . . . . . Fabricators . | . . . . . . . . Repair Stations . | . . . . . . . . Recycling Units . | . . . . . . . . Scanalyzers . | . . . . . . . . Garrison Access . | . . . . . . . . Data Cores Recovered . | . . . . . . . . Used . | . . . . . . . . Hacking Detections 10 | . 3 3 . . . 2 2 Full Trace Events 1 | . . . . . . . 1 Feedback Events . | . . . . . . . . Feedback Blocked . | . . . . . . . . Robot Schematics Acquired . | . . . . . . . . Robots Built . | . . . . . . . . Authchips . | . . . . . . . . Time . | . . . . . . . . Total Robot Build Rating . | . . . . . . . . Part Schematics Acquired . | . . . . . . . . Parts Built . | . . . . . . . . Authchips . | . . . . . . . . Time . | . . . . . . . . Total Part Build Rating . | . . . . . . . . Parts Repaired . | . . . . . . . . Time . | . . . . . . . . Parts Recycled . | . . . . . . . . Recycled Matter 194 | . . 194 . . . . . Retrieved Matter . | . . . . . . . . Retrieved Components . | . . . . . . . . Parts Scanalyzed . | . . . . . . . . Part Schematics Acquired . | . . . . . . . . Parts Damaged . | . . . . . . . . Bothacking | -11 -10 -9 -9 -9 -8 -8 -7 ------------ Run | Yrd Mat Mat Min Exi Min Mat Fac Used RIF Installer . | . . . . . . . . Robots Hacked . | . . . . . . . . Non-combat . | . . . . . . . . Combat . | . . . . . . . . Robot Hacks Applied . | . . . . . . . . Relay Couplers Released . | . . . . . . . . Fabnet Peak Effective % . | . . . . . . . . Robots Rewired . | . . . . . . . . Allies Hacked . | . . . . . . . . Hacks Repelled . | . . . . . . . . Allies | -11 -10 -9 -9 -9 -8 -8 -7 -------- Run | Yrd Mat Mat Min Exi Min Mat Fac Total Allies 2 | . . . 2 . . . . Largest Group 2 | . . . 2 . . . . Highest-Rated Group 45 | . . . 45 . . . . Highest-Rated Ally 31 | . . . 31 . . . . Total Orders . | . . . . . . . . Ally Attacks 5 | . . . 5 . . . . Total Damage 42 | . . . 42 . . . . Kills 1 | . . . 1 . . . . Allies Corrupted . | . . . . . . . . Allies Melted . | . . . . . . . . Intel | -11 -10 -9 -9 -9 -8 -8 -7 ------- Run | Yrd Mat Mat Min Exi Min Mat Fac Robot Analysis Total . | . . . . . . . . Derelict Logs Recovered 1 | . . . 1 . . . . Drone Launches . | . . . . . . . . Drone Recoveries . | . . . . . . . . Exploration | -11 -10 -9 -9 -9 -8 -8 -7 ------------- Run | Yrd Mat Mat Min Exi Min Mat Fac Turns Passed 2427 | 56 227 397 634 366 422 206 119 Spaces Moved 1677 | 52 167 166 413 300 237 192 150 Core 2 | 2 . . . . . . . Treads 2 | . 2 . . . . . . Legs 1200 | . 84 166 413 300 237 . . Wheels 131 | 50 81 . . . . . . Hover . | . . . . . . . . Flight 342 | . . . . . . 192 150 Fastest Speed 50 | 50 80 120 120 120 120 50 50 Average Speed 102 | 78 102 120 120 120 120 50 50 Slowest Speed 190 | 80 190 120 120 120 120 50 50 Overloaded Moves . | . . . . . . . . Propulsion Burnouts . | . . . . . . . . Robots Hopped . | . . . . . . . . Cave-ins Triggered . | . . . . . . . . Exploration Rate (%) 37 | 4 40 28 65 70 62 22 5 Regions Visited 7 Branch Regions 3 Pre-discovered Areas 1 | . . . . 1 . . . Known Exits Taken 2 | . 1 . . . 1 . . Unknown Exits Taken 5 | 1 . 1 1 1 . 1 . Scrap Searched 3 | . . . 1 . 2 . . Spaces Dug . | . . . . . . . . Terrain Destroyed 55 | . 12 15 25 . . 1 2 Melee . | . . . . . . . . Projectile 3 | . . . . . . 1 2 AOE 52 | . 12 15 25 . . . . Terrain Rammed . | . . . . . . . . Walls Destroyed . | . . . . . . . . Machines Disabled . | . . . . . . . . Actions | -11 -10 -9 -9 -9 -8 -8 -7 --------- Run | Yrd Mat Mat Min Exi Min Mat Fac Total 2241 | 63 204 277 525 307 374 302 189 Wait 382 | . 3 38 70 . 138 99 34 Move 1670 | 51 166 165 412 299 236 191 150 Hop . | . . . . . . . . Pick Up 32 | 6 8 8 3 2 . 4 1 Fast Attach 16 | 6 4 2 2 2 . . . Attach 20 | . 6 7 4 . . 3 . Detach 3 | . 2 1 . . . . . Swap 15 | . . 6 9 . . . . Drop 28 | . 4 6 10 4 . 4 . Fire 75 | . 11 44 15 . . 1 4 Melee . | . . . . . . . . Ram . | . . . . . . . . Kick . | . . . . . . . . Crush . | . . . . . . . . Escape Stasis . | . . . . . . . . Rewire . | . . . . . . . . Trap . | . . . . . . . . Miscellaneous . | . . . . . . . . Route ------- -11/Scrapyard -10/Materials (discovered 5 exits: *Mat x3 / [*Min x2]) -9/Materials -9/Mines -9/Exiles -8/Mines (discovered 2 exits: *Mat x2) -8/Materials -7/Factory History --------- Turn | Location | Event 7 | -11/Scrapyard | Discovered new exit (range 15) 57 | -11/Scrapyard | Entered Materials 74 | -10/Materials | Identified exit to Materials 139 | -10/Materials | Discovered new exit (range 15) 188 | -10/Materials | Lost 3 parts (1p1n1u) 232 | -10/Materials | Discovered new exit (range 15) 284 | -10/Materials | Entered another Materials area 284 | -9/Materials | Evolved 2 slots: Propulsion x1, Weapon x1 665 | -9/Materials | Discovered new exit (range 13) 681 | -9/Materials | Entered Mines 689 | -9/Mines | Met a Derelict bent on vengeance 703 | -9/Mines | Assisted by bots powering up and referring to "LRC-V3" 803 | -9/Mines | Build established: Scavenger-Gunner 804 | -9/Mines | Assembled infested the area 830 | -9/Mines | Found a damaged Exp. Sensor Array with a note attached 838 | -9/Mines | Found Prototype Device 838 | -9/Mines | Identified Exp. Sensor Array 1136 | -9/Mines | Build established: Scavenger-Skirmisher 1227 | -9/Mines | Joined a pair of Derelicts in attacking an 0b10 outpost 1233 | -9/Mines | Learned Materials garrison access intel 1290 | -9/Mines | Lost 4 parts (1p2n1u) 1290 | -9/Mines | Lost 4 allies 1310 | -9/Mines | Deemed a non-threat by the Exiles lab entrance 1310 | -9/Mines | Discovered new exit (range 5) 1315 | -9/Mines | Entered Exiles 1344 | -9/Exiles | Met 8R-AWN 1365 | -9/Exiles | Met EX-HEX 1402 | -9/Exiles | Met EX-BIN 1415 | -9/Exiles | Aligned with FarCom system 1416 | -9/Exiles | Given EX-Vault access code 1449 | -9/Exiles | Opened EX-Vault 1455 | -9/Exiles | Found Flying Fortress v7 1465 | -9/Exiles | Found Longsword +1 1470 | -9/Exiles | Found AWS/Gauss 1495 | -9/Exiles | Warned to stay clear of 0b10 Research branches 1526 | -9/Exiles | Met EX-DEC 1591 | -9/Exiles | Learned location of Zion (-6) 1667 | -9/Exiles | Discovered new exit (range 14) 1681 | -9/Exiles | Stole three prototypes: Flying Fortress v7, AWS/Gauss, Longsword +1 1681 | -9/Exiles | Entered Mines 1687 | -8/Mines | Identified exit to Materials 2103 | -8/Mines | Entered Materials 2103 | -8/Materials | Evolved 2 slots: Propulsion x1, Utility x1 2104 | -8/Materials | Loaded intel: 1 garrison access location 2294 | -8/Materials | Discovered new exit (range 9) 2309 | -8/Materials | Entered Factory 2309 | -7/Factory | Evolved 2 slots: Power x1, Utility x1 2311 | -7/Factory | FarCom data flow suspended 2428 | -7/Factory | Self-destructed Last Messages --------------- 02348_ Acquired Xenon Bombardment Thruster. 02366_ Connecting with Repair Station... 02366_ Current location identified: Factory 02374_ K-01 Serf cleans the Neutrino Reactor. 02379_ Connecting with Terminal... 02379_ ALERT: Suspicious activity at Terminal F002. Dispatching Investigation squad. 02404_ ALERT: All DSF locations entering lockdown mode. 02410_ Slug penetrates Terminal. 02410_ Terminal disabled. 02412_ Slug penetrates G-47 Trooper. 02412_ Slug penetrates Wall. 02414_ Slug penetrates G-47 Trooper. 02415_ G-47 Trooper destroyed. 02416_ Slug penetrates G-47 Trooper. 02421_ U-05 Engineer builds a Wall. 02422_ Slug penetrates G-47 Trooper. 02422_ Destroyed Particle Gun. 02422_ Destroyed Imp. Heat Sink. Map ----- +----------------------------------------------------+ | ?????????????????????????????????????????????????? | | ?????????????????????????????????????????????????? | | ?????????????????????????????????????????????????? | | ?????????????????????????????????????????????????? | | ?????????????????????????????????????????????????? | | ?????????????????????????????????????????????????? | | ?????????????????????????????????????????????????? | | ????? ???????????????????????????????????????????? | | ???? ????????????????????????????????????????? | | ??? ???????????????????????????????????????? | | ?? ???????????????????????????????????????? | | ?? ??????????????????????????? ??????????? | | ?? ??????????????????????????? ?????????? | | ? ?????????????????????????? ??????????? | | ? #??????????????????????????? #??????????? | | # #?????????????????????????? #??????????? | | #?????????????????????????? #???????????? | | #????????????????????????? #???????????? | | #????????????????????????? #???????????? | | #????????????????##+###### ^ #???????????? | | #????????????????# """"" #???????????? | | ##+##########??????????# " ="" #???????????? | | #??????????# =% #"#?????????? | | #??????????# """ """ #?????????? | | #?????????## """ """ #?????????? | | #?????????# @""" """ #?????????? | | #?????????# #?????????? | | #?????????+ ]![ """ #?????????? | | #?????????# ]![ """ #?????????? | | #?????????# ]! """ #?????????? | | ! #?????????# g #?????????? | | #?????????# """ """ #?????????? | | #?????????# """m""" #?????????? | | #?????????# """ """ #?????????? | | +####+#######?????????# ????? | | ???# #???????????????# """ """ ????? | | ???# #???????????????# """ """ ????? | | ???# #???????????????# """ """ ?????? | | #### #???????????????# k ?????? | | ################# ?????? | | ### ?????? | | #??###+#######+??????? | | #????????????????????? | | #????????????????????? | | ##+################+########???????????????? | | # = #????# #???????????????? | | + #????# """" #???????????????? | | ###### """ #????# """" #???????????????? | | #?????# """ #????# " "" """" ????????????????? | | ??????# """ #????# "R"" """" ?????????????????? | +----------------------------------------------------+ Best States ------------- Heat Dissipation 44 Energy Generation 14 Energy Capacity 250 Matter Stores 300 Matter Capacity 300 Sight Range 18 Robot Scan Range 20 Terrain Scan Density 10 Armor Coverage 225 Evasion (%) 60 Recoil Reduction 2 Item Schematics ----------------- None Robot Schematics ------------------ None Fabricated ------------ Nothing Alien Tech Used ----------------- None Achievements -------------- Dramatic Entrance Challenges ------------ None Game ------ Seed ClaymoresGuidedTelecube Manual? 0 Play Time 00:43:03 Cumulative 10.3 hours Start 2025.03.10 @ 17:16:28 End 2025.03.11 @ 15:22:46 Sessions 7 Manual Loads 0 Difficulty Rogue Special Mode None Game No. 11 Rogue 11 Adventurer 0 Explorer 0 Win Type - Total 0 Types 0/0/0/0/0/0/0/0/0 Lore% 9 Gallery% 21 Achievement% 14 Wizard Run 0 Options --------- Layout 1 ASCII 0 Keyboard 0 Movement Mouse Keybinds 0 Fullscreen 1 Font 32/SmallcapsGlow Map View 50x35 Zoom Use 1% Tactical HUD 1 Map Filters NONE Filters NONE Steam 1 RUN: b55dac0b-5b30-4a07-b86e-5440269dc95c